bitfinex-derivatives/quotes_BTCF0:USTF0_20250704
["timestamp","ask_amount","ask_price","bid_price","bid_amount"]
[1751599922270,1.65134386,109380.0,109370.0,0.81368907]
[1751599922763,1.65134386,109380.0,109370.0,0.5654024]
[1751599922964,1.65134386,109380.0,109370.0,0.81368907]
[1751599923371,1.65134386,109380.0,109370.0,0.86827963]
[1751599924068,1.65134386,109380.0,109370.0,0.61999296]
[1751599924272,1.65134386,109380.0,109370.0,0.86827963]
[1751599924572,0.59170386,109380.0,109370.0,0.86827963]
[1751599924871,1.65134386,109380.0,109370.0,0.86827963]
[1751599926872,1.40305719,109380.0,109370.0,0.86827963]
[1751599927074,1.65134386,109380.0,109370.0,0.86827963]
[1751599927872,1.65134386,109380.0,109370.0,0.81368907]
[1751599928273,1.65134386,109380.0,109370.0,0.86827963]
[1751599928571,1.68224386,109380.0,109370.0,0.86827963]
[1751599930975,2.00224386,109380.0,109370.0,0.86827963]
[1751599941479,2.00224386,109380.0,109370.0,0.81368907]
[1751599942681,2.00224386,109380.0,109370.0,0.86827963]
[1751599942981,2.00224386,109380.0,109370.0,0.81368907]
[1751599945281,0.94260386,109380.0,109370.0,0.81368907]
[1751599945485,1.77108386,109380.0,109370.0,0.81368907]
[1751599947080,1.77108386,109380.0,109370.0,0.78138907]
[1751599947284,1.77108386,109380.0,109370.0,0.83597963]
[1751599955685,1.77108386,109380.0,109370.0,0.78138907]
[1751599959587,1.77112746,109380.0,109370.0,0.78138907]
[1751599961577,1.77112746,109380.0,109370.0,0.5331024]
[1751599961776,1.77112746,109380.0,109370.0,0.78138907]
[1751599964690,1.77112746,109380.0,109370.0,0.83597963]
[1751599968994,1.77112746,109380.0,109370.0,0.58769296]
[1751599969195,1.77112746,109380.0,109370.0,0.83597963]
[1751599979504,1.77112746,109380.0,109370.0,0.86797963]
[1751599981107,1.77112746,109380.0,109370.0,0.55797963]
[1751599981300,1.77112746,109380.0,109370.0,0.86797963]
[1751599988612,1.77112746,109380.0,109370.0,0.61969296]
[1751599988811,1.77112746,109380.0,109370.0,0.86797963]
[1751599989610,1.52284079,109380.0,109370.0,0.86797963]
[1751599989802,1.77112746,109380.0,109370.0,0.86797963]
[1751599990002,0.63276079,109380.0,109370.0,0.86797963]
[1751599990212,1.70920746,109380.0,109370.0,0.90027963]
[1751599992721,1.46092079,109380.0,109370.0,0.90027963]
[1751599993718,1.08588014,109380.0,109370.0,1.52672506]
[1751599994111,0.90309444,109380.0,109370.0,1.16672506]
[1751599994918,1.08588014,109380.0,109370.0,1.16672506]
[1751599995119,1.08588014,109380.0,109370.0,0.91843839]
[1751599995311,1.08588014,109380.0,109370.0,0.84568907]
[1751599996218,1.08588014,109380.0,109370.0,0.90035637]
[1751599997320,1.1076709,109380.0,109370.0,0.90035637]
[1751599997721,1.35595757,109380.0,109370.0,0.90035637]
[1751600001021,1.92424424,109380.0,109370.0,0.5008024]
[1751600001215,1.98614424,109380.0,109370.0,0.5008024]
[1751600001623,1.98614424,109380.0,109370.0,0.2608024]
[1751600002121,1.98614424,109380.0,109370.0,0.4608024]
[1751600005329,1.98614424,109380.0,109370.0,0.2708024]
[1751600005530,1.98614424,109380.0,109370.0,0.5008024]
[1751600007734,1.98614424,109380.0,109370.0,0.1908024]
[1751600007931,1.98614424,109380.0,109370.0,0.2708024]
[1751600009128,1.98614424,109380.0,109370.0,0.008]
[1751600009332,0.1828024,109370.0,109360.0,0.3288807]
[1751600009534,0.85597983,109370.0,109360.0,0.5988807]
[1751600010230,0.85397983,109370.0,109360.0,0.5442134]
[1751600010837,0.85397983,109370.0,109360.0,0.5462134]
[1751600011030,0.85397983,109370.0,109360.0,0.6038807]
[1751600011231,0.85397983,109370.0,109360.0,0.5492134]
[1751600011838,1.08485983,109370.0,109360.0,0.5492134]
[1751600012027,1.08485983,109370.0,109360.0,0.6038807]
[1751600012332,1.08485983,109370.0,109360.0,0.5492134]
[1751600013537,1.09407531,109370.0,109360.0,0.5492134]
[1751600015836,1.08485983,109370.0,109360.0,0.79750007]
[1751600016036,1.08485983,109370.0,109360.0,0.5792134]
[1751600016037,1.08469893,109370.0,109360.0,0.5792134]
[1751600017035,1.09381727,109370.0,109360.0,0.5792134]
[1751600018037,1.09381727,109370.0,109360.0,0.82750007]
[1751600020130,1.09381727,109370.0,109360.0,0.5792134]
[1751600020332,1.09381727,109370.0,109360.0,0.3492134]
[1751600020837,1.09381727,109370.0,109360.0,0.2792134]
[1751600021036,1.09381727,109370.0,109360.0,0.5992134]
[1751600021332,1.09381727,109370.0,109360.0,0.3592134]
[1751600022028,0.8455306,109370.0,109360.0,0.6092134]
[1751600022234,1.09381727,109370.0,109360.0,0.5635091]
[1751600022434,1.34210394,109370.0,109360.0,0.2335091]
[1751600023937,1.09381727,109370.0,109360.0,0.2335091]
[1751600024540,1.09381727,109370.0,109360.0,0.5435091]
[1751600037250,1.08469893,109370.0,109360.0,0.5435091]
[1751600037549,1.08469893,109370.0,109360.0,0.85209577]
[1751600038151,1.08469893,109370.0,109360.0,0.90676307]
[1751600038654,0.23383226,109370.0,109360.0,1.15504974]
[1751600038948,1.26127226,109370.0,109360.0,1.15504974]
[1751600039148,1.50955893,109370.0,109360.0,1.18634974]
[1751600039542,1.50955893,109370.0,109360.0,0.93806307]
[1751600047155,1.84955893,109370.0,109360.0,0.93806307]
[1751600048456,1.84955893,109370.0,109360.0,0.6897764]
[1751600048658,1.87965893,109370.0,109360.0,0.6897764]
[1751600052461,1.87965893,109370.0,109360.0,0.6584764]
[1751600053860,1.87965893,109370.0,109360.0,0.6554764]
[1751600055458,1.91005893,109370.0,109360.0,0.6554764]
[1751600057465,1.91005893,109370.0,109360.0,0.6534764]
[1751600057660,1.94045893,109370.0,109360.0,0.6534764]
[1751600059165,1.94045893,109370.0,109360.0,0.90176307]
[1751600061673,1.94045893,109370.0,109360.0,0.6534764]
[1751600061873,1.94045893,109370.0,109360.0,0.90176307]
[1751600065170,1.94045893,109370.0,109360.0,0.6534764]
[1751600069877,1.94045893,109370.0,109360.0,0.90176307]
[1751600070078,1.94045893,109370.0,109360.0,0.6534764]
[1751600070279,1.94045893,109370.0,109360.0,0.90176307]
[1751600070479,1.94045893,109370.0,109360.0,0.6534764]
[1751600070678,1.94045893,109370.0,109360.0,0.90176307]
[1751600076587,1.94045893,109370.0,109360.0,0.6534764]
[1751600079888,1.70953893,109370.0,109360.0,0.6534764]
[1751600081586,1.70953893,109370.0,109360.0,0.90176307]
[1751600084689,1.94033893,109370.0,109360.0,0.90176307]
[1751600098496,1.94033893,109370.0,109360.0,0.5931764]
[1751600100892,2.1886256,109370.0,109360.0,0.0546673]
[1751600101096,2.1886256,109370.0,109360.0,0.2374864]
[1751600101396,0.1828191,109360.0,109350.0,0.78602878]
[1751600101593,0.79273563,109360.0,109350.0,0.99822878]
[1751600101805,0.45273563,109360.0,109350.0,0.94356148]
[1751600101991,0.20444896,109360.0,109350.0,0.99837501]
[1751600102194,1.03188896,109360.0,109350.0,0.94356148]
[1751600103101,1.03188896,109360.0,109350.0,0.94556148]
[1751600103900,1.03188896,109360.0,109350.0,0.94756148]
[1751600105003,1.03188896,109360.0,109350.0,0.69927481]
[1751600105204,1.28017563,109360.0,109350.0,1.0023672]
[1751600106504,0.20444896,109360.0,109350.0,1.0023672]
[1751600106805,1.28017563,109360.0,109350.0,0.94756148]
[1751600108604,1.28017563,109360.0,109350.0,0.69927481]
[1751600108800,1.28017563,109360.0,109350.0,0.94756148]
[1751600113204,1.37188896,109360.0,109350.0,0.94756148]
[1751600113401,1.66017563,109360.0,109350.0,0.94756148]
[1751600114897,1.66017563,109360.0,109350.0,0.96177864]
[1751600115910,1.66017563,109360.0,109350.0,0.96177866]
[1751600116513,1.66017563,109360.0,109350.0,1.01658438]
[1751600118609,1.69077563,109360.0,109350.0,1.01658438]
[1751600120417,1.69077563,109360.0,109350.0,1.01658297]
[1751600122518,1.69077563,109360.0,109350.0,0.98438297]
[1751600123206,1.75557563,109360.0,109350.0,0.98438297]
[1751600123410,2.0038623,109360.0,109350.0,0.98438297]
[1751600123611,2.0038623,109360.0,109350.0,0.93867467]
[1751600123918,1.75557563,109360.0,109350.0,0.93867467]
[1751600124113,1.75557563,109360.0,109350.0,0.87737467]
[1751600126622,1.75557563,109360.0,109350.0,0.87739034]
[1751600132923,1.75557563,109360.0,109350.0,0.87738162]
[1751600136032,1.75557563,109360.0,109350.0,0.8773826]
[1751600136222,1.75557563,109360.0,109350.0,0.9427826]
[1751600136423,1.73557563,109360.0,109350.0,0.9427826]
[1751600139130,1.73557563,109360.0,109350.0,0.94277948]
[1751600142132,1.73557563,109360.0,109350.0,0.94278025]
[1751600143224,0.51593563,109360.0,109350.0,0.94278025]
[1751600143425,1.34321563,109360.0,109350.0,0.94278025]
[1751600145329,1.34321563,109360.0,109350.0,0.94285029]
[1751600153339,0.51593563,109360.0,109350.0,0.88804457]
[1751600153542,1.34317563,109360.0,109350.0,0.88804457]
[1751600153744,1.34317563,109360.0,109350.0,0.94287704]
[1751600154345,1.34317563,109360.0,109350.0,0.94287664]
[1751600154742,1.34329592,109360.0,109350.0,0.94287664]
[1751600159244,1.34329592,109360.0,109350.0,0.88804457]
[1751600160651,1.34329592,109360.0,109350.0,0.88804447]
[1751600161139,1.34329592,109360.0,109350.0,0.5743578]
[1751600161140,1.96158259,109360.0,109350.0,0.5743578]
[1751600161438,1.99158259,109360.0,109350.0,0.5743578]
[1751600161644,1.99158259,109360.0,109350.0,0.6291935]
[1751600169648,1.49500925,109360.0,109350.0,0.6291935]
[1751600169850,1.99158259,109360.0,109350.0,0.6291935]
[1751600172050,1.99158259,109360.0,109350.0,0.62919358]
[1751600173055,1.99158259,109360.0,109350.0,0.57435788]
[1751600175253,1.99158259,109360.0,109350.0,0.62918774]
[1751600176153,1.99158259,109360.0,109350.0,0.62918779]
[1751600176354,1.99158259,109360.0,109350.0,0.61489637]
[1751600176952,1.99158259,109360.0,109350.0,0.62918779]
[1751600178057,1.99158259,109360.0,109350.0,0.61489637]
[1751600179857,1.99158259,109360.0,109350.0,0.62918779]
[1751600180451,0.29776925,109360.0,109350.0,0.87747446]
[1751600180657,1.27989592,109360.0,109350.0,0.87747446]
[1751600180856,1.27989592,109360.0,109350.0,0.97247446]
[1751600186460,1.58989592,109360.0,109350.0,0.97247446]
[1751600189265,1.58989592,109360.0,109350.0,0.72418779]
[1751600189469,1.58989592,109360.0,109350.0,0.97247446]
[1751600193871,1.62279592,109360.0,109350.0,0.97247446]
[1751600197075,1.62279592,109360.0,109350.0,0.97247423]
[1751600197877,1.31279592,109360.0,109350.0,0.97247423]
[1751600198178,1.62279592,109360.0,109350.0,0.97247423]
[1751600198576,1.06450925,109360.0,109350.0,0.97247423]
[1751600198777,1.65279592,109360.0,109350.0,0.97247423]
[1751600200277,1.06450925,109360.0,109350.0,0.97247423]
[1751600200576,1.03160915,109360.0,109350.0,0.97247423]
[1751600200971,1.27989582,109360.0,109350.0,0.97247423]
[1751600203067,1.27989582,109360.0,109350.0,0.91764437]
[1751600203277,1.27989582,109360.0,109350.0,0.91764426]
[1751600205280,1.27989582,109360.0,109350.0,0.66935759]
[1751600205472,1.27989582,109360.0,109350.0,0.91764426]
[1751600205982,1.27989582,109360.0,109350.0,0.97247412]
[1751600211879,1.31099582,109360.0,109350.0,0.97247412]
[1751600212384,1.31099582,109360.0,109350.0,0.97247382]
[1751600212983,1.31099582,109360.0,109350.0,0.99039328]
[1751600216282,1.31099582,109360.0,109350.0,0.91764396]
[1751600221891,1.31099582,109360.0,109350.0,0.88584396]
[1751600223292,1.68099582,109360.0,109350.0,0.88584396]
[1751600223491,1.71299582,109360.0,109350.0,0.88584396]
[1751600224188,1.96128249,109360.0,109350.0,0.88584396]
[1751600224394,1.99288249,109360.0,109350.0,0.94058884]
[1751600225095,1.37459582,109360.0,109350.0,0.94058884]
[1751600225393,1.72459582,109360.0,109350.0,0.94058884]
[1751600228298,1.72459582,109360.0,109350.0,0.88584396]
[1751600229601,1.72459582,109360.0,109350.0,0.88584426]
[1751600235011,1.72459582,109360.0,109350.0,0.87155318]
[1751600235709,1.75459582,109360.0,109350.0,0.87155318]
[1751600239415,1.75459582,109360.0,109350.0,0.62326651]
[1751600239601,2.00288249,109360.0,109350.0,0.80835318]
[1751600242924,2.00288249,109360.0,109350.0,0.86312559]
[1751600245328,1.75459582,109360.0,109350.0,0.86312559]
[1751600253328,1.12630915,109360.0,109350.0,0.86312559]
[1751600253527,1.12630915,109360.0,109350.0,0.89452559]
[1751600253729,1.37459582,109360.0,109350.0,0.92612559]
[1751600258842,1.70459582,109360.0,109350.0,0.92612559]
[1751600260130,1.95288249,109360.0,109350.0,0.67783892]
[1751600260337,1.95288249,109360.0,109350.0,0.61483892]
[1751600266554,1.95288249,109360.0,109350.0,0.56913072]
[1751600266744,2.20116916,109360.0,109350.0,0.06060132]
[1751600266936,0.1828358,109350.0,109340.0,0.34701652]
[1751600267141,1.1248966,109350.0,109340.0,0.2285557]
[1751600267551,1.1248966,109350.0,109340.0,0.4985557]
[1751600267744,1.1248966,109350.0,109340.0,0.4528442]
[1751600268144,1.1248966,109350.0,109340.0,0.4558442]
[1751600268552,0.1828692,109330.0,109320.0,0.5687293]
[1751600268745,1.61783587,109330.0,109320.0,0.6300293]
[1751600269046,1.71093587,109330.0,109320.0,0.6300293]
[1751600269445,1.71093587,109330.0,109320.0,0.3800293]
[1751600269650,1.71093587,109330.0,109320.0,0.6500293]
[1751600269949,1.70993587,109330.0,109320.0,0.6200293]
[1751600270652,1.71093587,109330.0,109320.0,0.6210293]
[1751600271451,1.71093587,109330.0,109320.0,0.86931597]
[1751600272053,1.71093587,109330.0,109320.0,0.65466606]
[1751600272259,1.71093587,109330.0,109320.0,0.90295273]
[1751600273256,1.71093587,109330.0,109320.0,0.91724784]
[1751600273956,1.71998775,109330.0,109320.0,0.91724784]
[1751600275159,1.71998775,109330.0,109320.0,0.66896117]
[1751600275347,1.71998775,109330.0,109320.0,0.91724784]
[1751600275860,1.71998775,109330.0,109320.0,0.66896117]
[1751600276060,1.71998775,109330.0,109320.0,0.91724784]
[1751600277655,1.71998775,109330.0,109320.0,0.66896117]
[1751600278263,1.71998775,109330.0,109320.0,0.34893187]
[1751600278564,1.71998775,109330.0,109320.0,0.50181777]
[1751600279264,1.71998775,109330.0,109320.0,0.31907102]
[1751600279565,1.7411876,109330.0,109320.0,0.31807102]
[1751600279867,1.7431876,109330.0,109320.0,0.50195692]
[1751600280659,1.7431876,109330.0,109320.0,0.02907102]
[1751600280866,1.99147427,109330.0,109320.0,0.03907102]
[1751600281772,1.99347427,109330.0,109320.0,0.03907102]
[1751600282767,0.1828859,109320.0,109310.0,0.19473228]
[1751600282972,1.07195924,109320.0,109310.0,0.01182958]
[1751600283768,1.07195924,109320.0,109310.0,0.01282958]
[1751600283973,1.07295924,109320.0,109310.0,0.01282958]
[1751600284572,1.14642344,109320.0,109310.0,0.00282958]
[1751600284774,0.1829027,109310.0,109300.0,0.228636]
[1751600285077,1.95794937,109310.0,109300.0,0.548636]
[1751600285377,1.95794937,109310.0,109300.0,0.502907]
[1751600285668,1.7096627,109310.0,109300.0,0.502907]
[1751600285875,1.96794937,109310.0,109300.0,0.75119367]
[1751600286075,1.96894937,109310.0,109300.0,0.75319367]
[1751600287775,1.96894937,109310.0,109300.0,0.75419367]
[1751600288876,1.96894937,109310.0,109300.0,0.81829367]
[1751600290579,1.94894937,109310.0,109300.0,0.81829367]
[1751600291780,1.91574937,109310.0,109300.0,0.81829367]
[1751600294476,1.55574937,109310.0,109300.0,0.81829367]
[1751600294782,1.55574937,109310.0,109300.0,0.84657983]
[1751600296782,1.57792807,109310.0,109300.0,0.84657983]
[1751600298280,1.57792807,109310.0,109300.0,0.59829316]
[1751600298487,1.93792807,109310.0,109300.0,0.84657983]
[1751600299788,1.93794172,109310.0,109300.0,0.84657983]
[1751600299988,1.93794172,109310.0,109300.0,0.84655047]
[1751600300288,1.93794172,109310.0,109300.0,0.84655135]
[1751600301379,1.91794172,109310.0,109300.0,0.84655135]
[1751600301583,1.91794172,109310.0,109300.0,0.84655601]
[1751600301889,0.51718172,109310.0,109300.0,0.84655601]
[1751600302188,1.92878172,109310.0,109300.0,0.84655601]
[1751600302683,1.33049505,109310.0,109300.0,0.84655601]
[1751600302989,1.92876108,109310.0,109300.0,0.84655601]
[1751600303889,1.92876108,109310.0,109300.0,0.53416934]
[1751600304388,1.95956108,109310.0,109300.0,0.53416934]
[1751600304788,1.95956108,109310.0,109300.0,0.78245601]
[1751600305988,1.36127441,109310.0,109300.0,0.78245601]
[1751600306184,1.96956108,109310.0,109300.0,0.81575601]
[1751600306392,1.96956108,109310.0,109300.0,0.81580609]
[1751600306587,1.96956108,109310.0,109300.0,0.84660609]
[1751600308994,1.9695975,109310.0,109300.0,0.84660609]
[1751600309392,1.9695975,109310.0,109300.0,0.90122974]
[1751600310195,0.9079975,109310.0,109300.0,0.90122974]
[1751600310395,1.5160775,109310.0,109300.0,1.14951641]
[1751600310589,1.26779083,109310.0,109300.0,1.18101641]
[1751600311395,1.5160775,109310.0,109300.0,1.18101641]
[1751600312296,1.26779083,109310.0,109300.0,1.18101641]
[1751600312497,1.5160775,109310.0,109300.0,1.18101641]
[1751600313699,1.26779083,109310.0,109300.0,1.18101641]
[1751600315197,1.5160775,109310.0,109300.0,0.93272974]
[1751600315399,1.5485775,109310.0,109300.0,0.90122974]
[1751600315597,1.9285775,109310.0,109300.0,0.90122868]
[1751600315999,1.5485775,109310.0,109300.0,0.90122868]
[1751600318702,1.5485775,109310.0,109300.0,0.87291732]
[1751600318890,1.5485775,109310.0,109300.0,0.90118252]
[1751600319796,1.5485775,109310.0,109300.0,0.65289585]
[1751600319997,1.5485775,109310.0,109300.0,0.90118252]
[1751600323404,1.30029083,109310.0,109300.0,0.90118252]
[1751600323604,1.5485775,109310.0,109300.0,0.90118252]
[1751600324904,1.5485775,109310.0,109300.0,0.90118014]
[1751600334713,1.5485775,109310.0,109300.0,0.65289347]
[1751600334910,1.5485775,109310.0,109300.0,0.90118014]
[1751600338825,1.30029083,109310.0,109300.0,0.90118014]
[1751600339026,1.5485775,109310.0,109300.0,0.90118014]
[1751600339527,1.5485775,109310.0,109300.0,1.14946681]
[1751600339921,0.23861083,109310.0,109300.0,1.14946681]
[1751600340226,1.0129427,109310.0,109300.0,1.41763768]
[1751600340435,1.0129427,109310.0,109300.0,1.44793768]
[1751600343027,1.0129427,109310.0,109300.0,1.37510614]
[1751600343230,1.0129427,109310.0,109300.0,1.42991788]
[1751600345631,1.0129427,109310.0,109300.0,1.17991788]
[1751600345831,1.0129427,109310.0,109300.0,1.51991788]
[1751600346032,1.0129427,109310.0,109300.0,1.50991788]
[1751600346228,1.0129427,109310.0,109300.0,1.17991788]
[1751600346731,1.0129427,109310.0,109300.0,1.50991788]
[1751600347234,1.0129427,109310.0,109300.0,1.01334454]
[1751600347430,1.0129427,109310.0,109300.0,1.50991788]
[1751600349027,1.1629749,109320.0,109310.0,0.1829027]
[1751600349231,1.2087,109320.0,109310.0,0.79481517]
[1751600349430,1.45694667,109320.0,109310.0,0.79481517]
[1751600349734,1.80694667,109320.0,109310.0,0.5465285]
[1751600349929,2.11833334,109320.0,109310.0,0.4811285]
[1751600350433,1.87204667,109320.0,109310.0,0.4821285]
[1751600350834,1.87204667,109320.0,109310.0,0.73041517]
[1751600351027,1.52204667,109320.0,109310.0,0.73041517]
[1751600351227,1.89304667,109320.0,109310.0,0.73041517]
[1751600354539,1.89304667,109320.0,109310.0,0.73034264]
[1751600355639,1.89304667,109320.0,109310.0,0.48205597]
[1751600355938,1.89304667,109320.0,109310.0,0.73034264]
[1751600356837,1.89304667,109320.0,109310.0,0.48205597]
[1751600357138,1.89304667,109320.0,109310.0,0.73034264]
[1751600357334,1.89304667,109320.0,109310.0,0.48205597]
[1751600357543,1.89304667,109320.0,109310.0,0.73034264]
[1751600358040,1.85994667,109320.0,109310.0,0.73034264]
[1751600358340,1.89034667,109320.0,109310.0,0.73034264]
[1751600361042,1.91244431,109320.0,109310.0,0.73034264]
[1751600363741,1.91244431,109320.0,109310.0,0.71611783]
[1751600363942,1.88204431,109320.0,109310.0,0.73040259]
[1751600364142,1.91424431,109320.0,109310.0,0.73040259]
[1751600366446,1.91424431,109320.0,109310.0,0.7303163]
[1751600366945,1.91424431,109320.0,109310.0,0.48202963]
[1751600367243,1.91424431,109320.0,109310.0,0.7303163]
[1751600368646,1.54424431,109320.0,109310.0,0.78512804]
[1751600370044,1.54424431,109320.0,109310.0,0.53683714]
[1751600370346,1.54424431,109320.0,109310.0,0.78512381]
[1751600372049,1.89424431,109320.0,109310.0,0.78512381]
[1751600375949,1.54424431,109320.0,109310.0,0.73031207]
[1751600376256,1.86424431,109320.0,109310.0,0.73031458]
[1751600376557,1.86424431,109320.0,109310.0,0.48202791]
[1751600376757,1.86424431,109320.0,109310.0,0.73031458]
[1751600387468,1.86424431,109320.0,109310.0,0.76081458]
[1751600387767,1.86424431,109320.0,109310.0,0.81562632]
[1751600389568,1.29595764,109320.0,109310.0,0.81562632]
[1751600389768,1.87424431,109320.0,109310.0,0.81562632]
[1751600391372,1.54424431,109320.0,109310.0,0.81562632]
[1751600392073,1.54424431,109320.0,109310.0,0.84872632]
[1751600393973,1.54424431,109320.0,109310.0,0.60043965]
[1751600394178,1.54424431,109320.0,109310.0,0.84872632]
[1751600394575,1.54424431,109320.0,109310.0,0.83444776]
[1751600394772,1.54424431,109320.0,109310.0,0.84866027]
[1751600398881,1.20450784,109320.0,109310.0,0.84866027]
[1751600399184,1.14140784,109320.0,109310.0,0.84866027]
[1751600399383,1.14140784,109320.0,109310.0,0.87936027]
[1751600400284,1.38969451,109320.0,109310.0,0.6310736]
[1751600400486,1.76969451,109320.0,109310.0,0.87936027]
[1751600400681,1.76969451,109320.0,109310.0,0.84865872]
[1751600401488,2.08108118,109320.0,109310.0,0.53677205]
[1751600402476,2.08108118,109320.0,109310.0,0.78505872]
[1751600404089,1.83279451,109320.0,109310.0,0.78505872]
[1751600407989,1.83279451,109320.0,109310.0,0.78505725]
[1751600408689,1.45279451,109320.0,109310.0,0.78505725]
[1751600408890,1.79279451,109320.0,109310.0,0.84875725]
[1751600409389,1.79279451,109320.0,109310.0,0.60047058]
[1751600409591,1.79279451,109320.0,109310.0,0.84875725]
[1751600411990,1.79279451,109320.0,109310.0,0.84876056]
[1751600415097,1.79279451,109320.0,109310.0,0.84876151]
[1751600420599,1.20450784,109320.0,109310.0,0.84876151]
[1751600420798,1.79279451,109320.0,109310.0,0.84876151]
[1751600424501,1.78279451,109320.0,109310.0,0.84876151]
[1751600426603,1.20450784,109320.0,109310.0,0.84876151]
[1751600426902,1.80279451,109320.0,109310.0,0.84876151]
[1751600430504,1.80279451,109320.0,109310.0,0.84884472]
[1751600434019,1.20450784,109320.0,109310.0,0.84884472]
[1751600434207,1.79279451,109320.0,109310.0,0.84884472]
[1751600437216,1.45279451,109320.0,109310.0,0.79403298]
[1751600437413,1.83279451,109320.0,109310.0,0.79403298]
[1751600443122,1.83279451,109320.0,109310.0,0.77973602]
[1751600444726,1.83279451,109320.0,109310.0,0.79045873]
[1751600445828,1.83279451,109320.0,109310.0,0.80475568]
[1751600446124,1.83279451,109320.0,109310.0,0.80475198]
[1751600447129,1.83279451,109320.0,109310.0,0.85956372]
[1751600448221,1.80269451,109320.0,109310.0,0.85956372]
[1751600448423,1.80269451,109320.0,109310.0,0.86894525]
[1751600448824,1.42269451,109320.0,109310.0,0.86894525]
[1751600449024,1.78269451,109320.0,109310.0,0.86894525]
[1751600449827,1.78269451,109320.0,109310.0,0.85956372]
[1751600453532,1.78269451,109320.0,109310.0,0.61127705]
[1751600453731,1.78269451,109320.0,109310.0,0.85956372]
[1751600455033,1.78269451,109320.0,109310.0,0.85956371]
[1751600456338,1.78269451,109320.0,109310.0,0.61127704]
[1751600456629,1.78269451,109320.0,109310.0,0.85956371]
[1751600456630,1.23880851,109320.0,109310.0,0.85956371]
[1751600457027,1.23880851,109320.0,109310.0,1.18956371]
[1751600458146,0.92532184,109320.0,109310.0,1.43785038]
[1751600458346,0.9032242,109320.0,109310.0,1.39949569]
[1751600458546,0.9032242,109320.0,109310.0,1.47232723]
[1751600460141,0.9032242,109320.0,109310.0,1.45426917]
[1751600460849,0.9032242,109320.0,109310.0,1.45426594]
[1751600462549,0.0754642,109320.0,109310.0,1.58426594]
[1751600462744,0.82672001,109320.0,109310.0,1.58426594]
[1751600463552,0.89943875,109320.0,109310.0,1.58426594]
[1751600464553,0.89943875,109320.0,109310.0,1.52949246]
[1751600464956,0.07271874,109320.0,109310.0,1.52949246]
[1751600465154,0.82772,109330.0,109320.0,0.1828859]
[1751600465351,0.85986617,109330.0,109320.0,1.12221083]
[1751600465546,0.03214617,109330.0,109320.0,1.12221083]
[1751600465754,0.83772,109330.0,109320.0,1.46221083]
[1751600466054,0.83772,109330.0,109320.0,1.44221083]
[1751600466656,0.3984356,109350.0,109340.0,0.1828525]
[1751600466657,0.78386057,109350.0,109340.0,0.1828525]
[1751600466853,2.03957976,109350.0,109340.0,0.77615559]
[1751600468062,2.03957976,109350.0,109340.0,0.76543427]
[1751600468261,2.03957976,109350.0,109340.0,0.76643427]
[1751600468262,2.04457976,109350.0,109340.0,0.76643427]
[1751600468560,2.04457976,109350.0,109340.0,0.75213917]
[1751600468759,2.05057976,109350.0,109340.0,0.75313917]
[1751600469860,2.05964353,109350.0,109340.0,0.75313917]
[1751600473465,2.05964353,109350.0,109340.0,0.76385949]
[1751600488676,1.81135686,109350.0,109340.0,0.76385949]
[1751600488976,2.05964353,109350.0,109340.0,0.76385949]
[1751600489371,1.23196353,109350.0,109340.0,0.76385949]
[1751600489579,1.22289976,109350.0,109340.0,1.01214616]
[1751600489777,1.80213309,109350.0,109340.0,1.01214616]
[1751600489985,2.05041976,109350.0,109340.0,1.01214616]
[1751600490984,2.05041976,109350.0,109340.0,1.07244616]
[1751600491171,2.05041976,109350.0,109340.0,1.07244601]
[1751600492076,0.66983919,109350.0,109340.0,1.07244601]
[1751600492271,0.85267499,109350.0,109340.0,1.07244601]
[1751600492479,1.43145919,109350.0,109340.0,1.07244601]
[1751600492672,1.43145919,109350.0,109340.0,1.10524601]
[1751600492868,0.60393919,109350.0,109340.0,1.42524601]
[1751600493068,1.61429499,109350.0,109340.0,1.47996437]
[1751600493281,1.5921558,109350.0,109340.0,1.47996437]
[1751600494876,0.83848,109350.0,109340.0,1.50807755]
[1751600495082,1.00848,109350.0,109340.0,1.50807755]
[1751600495281,1.00848,109350.0,109340.0,1.43524601]
[1751600495481,1.00848,109350.0,109340.0,1.50807755]
[1751600496576,0.181,109350.0,109340.0,1.50807755]
[1751600497383,0.011,109350.0,109340.0,1.43524601]
[1751600497980,0.011,109350.0,109340.0,1.11524601]
[1751600499380,0.011,109350.0,109340.0,1.1699]
[1751600502088,0.011,109350.0,109340.0,1.11524601]
[1751600502384,0.011,109350.0,109340.0,1.46524601]
[1751600502984,0.011,109350.0,109340.0,1.51987113]
[1751600504780,0.011,109350.0,109340.0,1.50915096]
[1751600515787,0.011,109350.0,109340.0,1.45452584]
[1751600516788,0.011,109350.0,109340.0,1.52735738]
[1751600522691,0.011,109350.0,109340.0,2.35467738]
[1751600523093,0.011,109350.0,109340.0,2.28184584]
[1751600523296,0.011,109350.0,109340.0,2.35467738]
[1751600525897,0.011,109350.0,109340.0,2.28184584]
[1751600526095,0.0332873,109350.0,109340.0,2.28184584]
[1751600530498,0.0332873,109350.0,109340.0,1.93184584]
[1751600530797,0.0332873,109350.0,109340.0,2.00184584]
[1751600530999,0.0332873,109350.0,109340.0,2.31184584]
[1751600531199,0.0332873,109350.0,109340.0,2.3666686]
[1751600532899,0.0332873,109350.0,109340.0,2.36667855]
[1751600533200,0.011,109350.0,109340.0,2.38467738]
[1751600535300,0.03328949,109350.0,109340.0,2.31184584]
[1751600535693,0.03328949,109350.0,109340.0,1.99180584]
[1751600536001,0.06568949,109350.0,109340.0,1.99180584]
[1751600540905,0.0434,109350.0,109340.0,2.06463738]
[1751600543904,0.011,109350.0,109340.0,2.06463738]
[1751600545106,0.011,109350.0,109340.0,1.99463738]
[1751600553406,0.011,109350.0,109340.0,2.28463738]
[1751600557816,0.011,109350.0,109340.0,2.21180584]
[1751600559018,0.011,109350.0,109340.0,2.28487596]
[1751600564830,0.011,109350.0,109340.0,2.29559404]
[1751600565423,0.011,109350.0,109340.0,2.03559404]
[1751600566329,0.011,109350.0,109340.0,2.04981708]
[1751600569732,0.011,109350.0,109340.0,2.01981708]
[1751600570032,0.011,109350.0,109340.0,1.52324374]
[1751600570230,0.011,109350.0,109340.0,1.19253708]
[1751600570531,0.58928667,109350.0,109340.0,1.66827041]
[1751600570722,0.68508667,109350.0,109340.0,1.91655708]
[1751600571332,0.68508667,109350.0,109340.0,1.08943708]
[1751600573230,0.70737567,109350.0,109340.0,1.07115363]
[1751600574538,0.37737567,109350.0,109340.0,1.07115363]
[1751600576036,0.88021127,109350.0,109340.0,0.82286696]
[1751600578039,0.6819246,109350.0,109340.0,0.82286696]
[1751600578237,0.74737567,109350.0,109340.0,0.82286696]
[1751600580140,0.74737567,109350.0,109340.0,0.82292404]
[1751600581744,0.93021127,109350.0,109340.0,0.82292404]
[1751600583247,0.90792227,109350.0,109340.0,0.82292404]
[1751600584439,0.90792227,109350.0,109340.0,1.07121071]
[1751600584440,1.73504227,109350.0,109340.0,1.07121071]
[1751600585245,1.55220667,109350.0,109340.0,1.07121071]
[1751600585445,1.73504227,109350.0,109340.0,1.07121071]
[1751600592952,1.73504227,109350.0,109340.0,1.10291071]